[Event "Titled Tuesday Blitz September 27 Late 2022"]
[White "Rustemov, Alexander"]
[Black "Brodowski, Piotr"]
[WhiteFideId "4119002"]
[BlackFideId "1124480"]
[WhiteElo "2834"]
[BlackElo "2312"]
[Result "1/2-1/2"]
[Round "07"]
[TimeControl "180+1"]
[Date "2022.09.27"]
[WhiteClock "0:00:57"]
[BlackClock "0:00:23"]

1. d4 {[%clk 0:03:00]}  d6 {[%clk 0:02:58]} 2. Nf3 {[%clk 0:02:59]}  g6 {[%clk 0:02:58]} 3. c4 {[%clk 0:02:58]}  Bg7 {[%clk 0:02:58]} 4. g3 {[%clk 0:02:59]}  Nc6 {[%clk 0:02:48]} 5. Bg2 {[%clk 0:02:59]}  Nf6 {[%clk 0:02:48]} 6. O-O {[%clk 0:02:58]}  O-O {[%clk 0:02:48]} 7. Nc3 {[%clk 0:02:58]}  Bf5 {[%clk 0:02:48]} 8. Ne1 {[%clk 0:02:57]}  e5 {[%clk 0:02:45]} 9. d5 {[%clk 0:02:57]}  Ne7 {[%clk 0:02:37]} 10. e4 {[%clk 0:02:57]}  Bg4 {[%clk 0:02:36]} 11. f3 {[%clk 0:02:56]}  Bc8 {[%clk 0:02:36]} 12. Nd3 {[%clk 0:02:56]}  Nd7 {[%clk 0:02:35]} 13. Be3 {[%clk 0:02:54]}  f5 {[%clk 0:02:34]} 14. Qd2 {[%clk 0:02:54]}  a5 {[%clk 0:02:28]} 15. Rae1 {[%clk 0:02:52]}  b6 {[%clk 0:02:28]} 16. f4 {[%clk 0:02:50]}  fxe4 {[%clk 0:02:10]} 17. Nxe4 {[%clk 0:02:46]}  Nf5 {[%clk 0:02:09]} 18. Bf2 {[%clk 0:02:45]}  exf4 {[%clk 0:02:00]} 19. Nxf4 {[%clk 0:02:44]}  Ne5 {[%clk 0:02:00]} 20. b3 {[%clk 0:02:34]}  a4 {[%clk 0:01:57]} 21. Ne6 {[%clk 0:02:34]}  Bxe6 {[%clk 0:01:56]} 22. dxe6 {[%clk 0:02:34]}  axb3 {[%clk 0:01:55]} 23. axb3 {[%clk 0:02:30]}  Qe7 {[%clk 0:01:52]} 24. h3 {[%clk 0:02:08]}  Qxe6 {[%clk 0:01:36]} 25. Ng5 {[%clk 0:02:07]}  Qc8 {[%clk 0:01:29]} 26. Qd5+ {[%clk 0:02:05]}  Kh8 {[%clk 0:01:27]} 27. Qxa8 {[%clk 0:02:04]}  Qxa8 {[%clk 0:01:27]} 28. Bxa8 {[%clk 0:02:04]}  Rxa8 {[%clk 0:01:28]} 29. g4 {[%clk 0:02:00]}  Ne7 {[%clk 0:01:19]} 30. Bd4 {[%clk 0:01:52]}  N7c6 {[%clk 0:01:12]} 31. Bxe5 {[%clk 0:01:52]}  Nxe5 {[%clk 0:01:10]} 32. Nf7+ {[%clk 0:01:51]}  Kg8 {[%clk 0:01:09]} 33. Nxe5 {[%clk 0:01:50]}  Bxe5 {[%clk 0:01:09]} 34. Re2 {[%clk 0:01:46]}  b5 {[%clk 0:01:04]} 35. cxb5 {[%clk 0:01:43]}  Rb8 {[%clk 0:01:04]} 36. Rc1 {[%clk 0:01:25]}  Rxb5 {[%clk 0:01:01]} 37. Rxc7 {[%clk 0:01:25]}  Rxb3 {[%clk 0:00:56]} 38. Ra2 {[%clk 0:01:20]}  Rb8 {[%clk 0:00:47]} 39. Raa7 {[%clk 0:01:19]}  Bd4+ {[%clk 0:00:47]} 40. Kg2 {[%clk 0:01:19]}  Bxa7 {[%clk 0:00:47]} 41. Rxa7 {[%clk 0:01:19]}  Rd8 {[%clk 0:00:45]} 42. Kf3 {[%clk 0:01:18]}  d5 {[%clk 0:00:45]} 43. Ke3 {[%clk 0:01:10]}  d4+ {[%clk 0:00:46]} 44. Kd3 {[%clk 0:01:08]}  h6 {[%clk 0:00:40]} 45. Ra4 {[%clk 0:01:04]}  Rf8 {[%clk 0:00:39]} 46. Ke4 {[%clk 0:01:00]}  Re8+ {[%clk 0:00:23]} 47. Kxd4 {[%clk 0:00:57]}  Kf7 {[%clk 0:00:23]} 1/2-1/2


[Site "https://www.chess.com"]

[Event "Titled Tuesday Blitz September 27 Late 2022"]
[White "Sadilek, Peter"]
[Black "Bilan, Danila"]
[WhiteFideId "1616439"]
[BlackFideId "24161918"]
[WhiteElo "2145"]
[BlackElo "2164"]
[Result "1-0"]
[Round "07"]
[TimeControl "180+1"]
[Date "2022.09.28"]
[WhiteClock "0:00:08"]
[BlackClock "0:00:01"]

1. d4 {[%clk 0:02:55]}  d5 {[%clk 0:02:59]} 2. Nf3 {[%clk 0:02:56]}  Nf6 {[%clk 0:02:59]} 3. c4 {[%clk 0:02:57]}  c6 {[%clk 0:03:00]} 4. Nc3 {[%clk 0:02:57]}  e6 {[%clk 0:03:00]} 5. g3 {[%clk 0:02:57]}  Nbd7 {[%clk 0:03:00]} 6. Bg2 {[%clk 0:02:58]}  Bd6 {[%clk 0:03:00]} 7. O-O {[%clk 0:02:59]}  O-O {[%clk 0:03:00]} 8. Nd2 {[%clk 0:03:00]}  h6 {[%clk 0:02:52]} 9. e4 {[%clk 0:03:00]}  dxe4 {[%clk 0:02:53]} 10. Ndxe4 {[%clk 0:03:01]}  Nxe4 {[%clk 0:02:54]} 11. Nxe4 {[%clk 0:03:02]}  Be7 {[%clk 0:02:49]} 12. Be3 {[%clk 0:03:02]}  Nf6 {[%clk 0:02:49]} 13. Nc3 {[%clk 0:03:03]}  Qc7 {[%clk 0:02:43]} 14. Qb3 {[%clk 0:02:53]}  b6 {[%clk 0:02:36]} 15. Rac1 {[%clk 0:02:53]}  Bb7 {[%clk 0:02:32]} 16. d5 {[%clk 0:02:38]}  exd5 {[%clk 0:02:14]} 17. cxd5 {[%clk 0:02:35]}  c5 {[%clk 0:02:11]} 18. Bf4 {[%clk 0:02:33]}  Qd7 {[%clk 0:02:01]} 19. Rfd1 {[%clk 0:02:09]}  Bd6 {[%clk 0:01:54]} 20. Bxd6 {[%clk 0:02:01]}  Qxd6 {[%clk 0:01:55]} 21. Nb5 {[%clk 0:01:58]}  Qd7 {[%clk 0:01:50]} 22. a4 {[%clk 0:01:46]}  Rfe8 {[%clk 0:01:40]} 23. a5 {[%clk 0:01:42]}  Rad8 {[%clk 0:01:32]} 24. Nxa7 {[%clk 0:01:36]}  bxa5 {[%clk 0:01:19]} 25. Nc6 {[%clk 0:01:31]}  Rc8 {[%clk 0:01:00]} 26. Nxa5 {[%clk 0:01:25]}  Ba8 {[%clk 0:00:53]} 27. Nc4 {[%clk 0:01:25]}  Rb8 {[%clk 0:00:41]} 28. Qd3 {[%clk 0:01:25]}  Rbd8 {[%clk 0:00:36]} 29. Ne3 {[%clk 0:01:25]}  Rc8 {[%clk 0:00:32]} 30. Rc2 {[%clk 0:01:06]}  Red8 {[%clk 0:00:28]} 31. Rcd2 {[%clk 0:00:55]}  Ne8 {[%clk 0:00:27]} 32. Nc4 {[%clk 0:00:47]}  Rb8 {[%clk 0:00:23]} 33. d6 {[%clk 0:00:38]}  Bxg2 {[%clk 0:00:22]} 34. Kxg2 {[%clk 0:00:39]}  Nf6 {[%clk 0:00:22]} 35. f3 {[%clk 0:00:37]}  Rb4 {[%clk 0:00:23]} 36. Re2 {[%clk 0:00:35]}  Qb5 {[%clk 0:00:20]} 37. Ne5 {[%clk 0:00:31]}  Rxb2 {[%clk 0:00:10]} 38. Qxb5 {[%clk 0:00:30]}  Rxb5 {[%clk 0:00:10]} 39. Nc6 {[%clk 0:00:31]}  Rd7 {[%clk 0:00:08]} 40. Ne5 {[%clk 0:00:24]}  Rd8 {[%clk 0:00:09]} 41. Red2 {[%clk 0:00:19]}  Rbb8 {[%clk 0:00:06]} 42. Nc6 {[%clk 0:00:19]}  Rbc8 {[%clk 0:00:07]} 43. Nxd8 {[%clk 0:00:19]}  Rxd8 {[%clk 0:00:08]} 44. Rc2 {[%clk 0:00:19]}  Nd7 {[%clk 0:00:08]} 45. Re1 {[%clk 0:00:16]}  Nf6 {[%clk 0:00:07]} 46. Rd1 {[%clk 0:00:13]}  Nd7 {[%clk 0:00:07]} 47. f4 {[%clk 0:00:13]}  f6 {[%clk 0:00:07]} 48. Kf3 {[%clk 0:00:13]}  Kf7 {[%clk 0:00:07]} 49. Ke4 {[%clk 0:00:13]}  g6 {[%clk 0:00:07]} 50. Kd5 {[%clk 0:00:13]}  c4 {[%clk 0:00:02]} 51. Re1 {[%clk 0:00:12]}  Nb6+ {[%clk 0:00:02]} 52. Kc6 {[%clk 0:00:13]}  Nc8 {[%clk 0:00:01]} 53. d7 {[%clk 0:00:08]} 1-0


[Site "https://www.chess.com"]

[Event "Titled Tuesday Blitz September 27 Late 2022"]
[White "Salman, Pavel"]
[Black "Goltsev, Dmitry"]
[WhiteFideId "24153753"]
[BlackFideId "24176710"]
[WhiteElo "2039"]
[BlackElo "2257"]
[Result "0-1"]
[Round "07"]
[TimeControl "180+1"]
[Date "2022.09.28"]
[WhiteClock "0:00:02"]
[BlackClock "0:00:05"]

1. Nf3 {[%clk 0:03:00]}  d5 {[%clk 0:02:45]} 2. g3 {[%clk 0:03:00]}  c6 {[%clk 0:02:46]} 3. Bg2 {[%clk 0:03:00]}  Nf6 {[%clk 0:02:47]} 4. O-O {[%clk 0:03:01]}  g6 {[%clk 0:02:48]} 5. d3 {[%clk 0:03:01]}  Bg7 {[%clk 0:02:48]} 6. Nbd2 {[%clk 0:03:02]}  O-O {[%clk 0:02:49]} 7. e4 {[%clk 0:03:02]}  dxe4 {[%clk 0:02:50]} 8. dxe4 {[%clk 0:03:02]}  Nbd7 {[%clk 0:02:49]} 9. Qe2 {[%clk 0:02:57]}  e5 {[%clk 0:02:48]} 10. b3 {[%clk 0:02:49]}  Qe7 {[%clk 0:02:46]} 11. a4 {[%clk 0:02:48]}  b6 {[%clk 0:02:45]} 12. Ba3 {[%clk 0:02:43]}  Nc5 {[%clk 0:02:45]} 13. Nc4 {[%clk 0:02:39]}  Ba6 {[%clk 0:02:41]} 14. Rfd1 {[%clk 0:02:35]}  Rfd8 {[%clk 0:02:39]} 15. Bf1 {[%clk 0:02:30]}  Qe6 {[%clk 0:02:36]} 16. Ng5 {[%clk 0:02:19]}  Qe7 {[%clk 0:02:29]} 17. Nf3 {[%clk 0:02:19]}  h6 {[%clk 0:02:24]} 18. Qe1 {[%clk 0:02:15]}  Nfd7 {[%clk 0:02:16]} 19. a5 {[%clk 0:02:10]}  Qf6 {[%clk 0:02:06]} 20. Kg2 {[%clk 0:02:02]}  Bf8 {[%clk 0:02:03]} 21. Ne3 {[%clk 0:01:44]}  Bxf1+ {[%clk 0:02:00]} 22. Nxf1 {[%clk 0:01:42]}  Ne6 {[%clk 0:01:54]} 23. Bxf8 {[%clk 0:01:41]}  Ndxf8 {[%clk 0:01:55]} 24. axb6 {[%clk 0:01:38]}  axb6 {[%clk 0:01:56]} 25. Rxa8 {[%clk 0:01:37]}  Rxa8 {[%clk 0:01:55]} 26. Rd6 {[%clk 0:01:31]}  Rc8 {[%clk 0:01:53]} 27. Qd2 {[%clk 0:01:28]}  g5 {[%clk 0:01:48]} 28. Ne3 {[%clk 0:01:26]}  Ng6 {[%clk 0:01:45]} 29. Nf5 {[%clk 0:01:23]}  Kh7 {[%clk 0:01:43]} 30. Rd7 {[%clk 0:01:19]}  Nc5 {[%clk 0:01:31]} 31. Rd6 {[%clk 0:01:04]}  Ne6 {[%clk 0:01:30]} 32. h4 {[%clk 0:01:01]}  Ngf8 {[%clk 0:00:58]} 33. hxg5 {[%clk 0:00:59]}  hxg5 {[%clk 0:00:59]} 34. Nxg5+ {[%clk 0:00:31]}  Qxg5 {[%clk 0:00:54]} 35. Qxg5 {[%clk 0:00:27]}  Nxg5 {[%clk 0:00:55]} 36. Rh6+ {[%clk 0:00:26]}  Kg8 {[%clk 0:00:54]} 37. Ne7+ {[%clk 0:00:26]}  Kg7 {[%clk 0:00:54]} 38. Nf5+ {[%clk 0:00:21]}  Kg8 {[%clk 0:00:54]} 39. Rh5 {[%clk 0:00:10]}  Ra8 {[%clk 0:00:45]} 40. Rxg5+ {[%clk 0:00:11]}  Kh8 {[%clk 0:00:46]} 41. Rh5+ {[%clk 0:00:10]}  Nh7 {[%clk 0:00:42]} 42. Ne7 {[%clk 0:00:09]}  f6 {[%clk 0:00:41]} 43. Nxc6 {[%clk 0:00:08]}  Rc8 {[%clk 0:00:40]} 44. Nb4 {[%clk 0:00:08]}  Kg7 {[%clk 0:00:40]} 45. Rh1 {[%clk 0:00:08]}  Ng5 {[%clk 0:00:40]} 46. f3 {[%clk 0:00:08]}  Rd8 {[%clk 0:00:39]} 47. Nd3 {[%clk 0:00:09]}  Ne6 {[%clk 0:00:36]} 48. Ra1 {[%clk 0:00:08]}  Nd4 {[%clk 0:00:35]} 49. Ra7+ {[%clk 0:00:09]}  Kg6 {[%clk 0:00:36]} 50. Rc7 {[%clk 0:00:08]}  Ra8 {[%clk 0:00:27]} 51. Kf2 {[%clk 0:00:06]}  Ra2 {[%clk 0:00:26]} 52. Nb4 {[%clk 0:00:06]}  Ra1 {[%clk 0:00:26]} 53. f4 {[%clk 0:00:06]}  Rh1 {[%clk 0:00:24]} 54. Kg2 {[%clk 0:00:05]}  Re1 {[%clk 0:00:24]} 55. fxe5 {[%clk 0:00:06]}  fxe5 {[%clk 0:00:24]} 56. Nd5 {[%clk 0:00:05]}  b5 {[%clk 0:00:20]} 57. Rc8 {[%clk 0:00:05]}  Rxe4 {[%clk 0:00:20]} 58. Rg8+ {[%clk 0:00:04]}  Kf7 {[%clk 0:00:20]} 59. Rb8 {[%clk 0:00:04]}  Re2+ {[%clk 0:00:20]} 60. Kf1 {[%clk 0:00:04]}  Rxc2 {[%clk 0:00:20]} 61. g4 {[%clk 0:00:04]}  e4 {[%clk 0:00:12]} 62. b4 {[%clk 0:00:04]}  Ke6 {[%clk 0:00:10]} 63. Ne3 {[%clk 0:00:03]}  Rb2 {[%clk 0:00:09]} 64. Rb6+ {[%clk 0:00:02]}  Ke5 {[%clk 0:00:09]} 65. Rxb5+ {[%clk 0:00:02]}  Kf4 {[%clk 0:00:08]} 66. Nd1 {[%clk 0:00:03]}  Rd2 {[%clk 0:00:08]} 67. Ke1 {[%clk 0:00:03]}  Nf3+ {[%clk 0:00:07]} 68. Kf1 {[%clk 0:00:02]}  Kg3 {[%clk 0:00:05]} 69. Re5 {[%clk 0:00:01]}  Rxd1+ {[%clk 0:00:04]} 70. Ke2 {[%clk 0:00:02]}  Re1# {[%clk 0:00:05]} 0-1


[Site "https://www.chess.com"]

[Event "Titled Tuesday Blitz September 27 Late 2022"]
[White "Shandrygin, Nikita"]
[Black "Wagner, Dennis"]
[WhiteFideId "24198668"]
[BlackFideId "24650684"]
[WhiteElo "2323"]
[BlackElo "2355"]
[Result "0-1"]
[Round "07"]
[TimeControl "180+1"]
[Date "2022.09.28"]
[WhiteClock "0:00:07"]
[BlackClock "0:00:08"]

1. e4 {[%clk 0:03:00]}  e5 {[%clk 0:02:59]} 2. Nf3 {[%clk 0:03:00]}  Nc6 {[%clk 0:02:59]} 3. Bb5 {[%clk 0:03:00]}  a6 {[%clk 0:02:59]} 4. Ba4 {[%clk 0:03:00]}  Nf6 {[%clk 0:03:00]} 5. Qe2 {[%clk 0:03:00]}  b5 {[%clk 0:02:59]} 6. Bb3 {[%clk 0:03:00]}  Bc5 {[%clk 0:03:00]} 7. c3 {[%clk 0:03:00]}  d6 {[%clk 0:02:59]} 8. O-O {[%clk 0:03:00]}  O-O {[%clk 0:02:59]} 9. h3 {[%clk 0:03:00]}  h6 {[%clk 0:02:55]} 10. Rd1 {[%clk 0:03:00]}  Bb6 {[%clk 0:02:53]} 11. d3 {[%clk 0:03:00]}  Re8 {[%clk 0:02:52]} 12. Nbd2 {[%clk 0:03:00]}  Be6 {[%clk 0:02:52]} 13. Bc2 {[%clk 0:02:59]}  Qd7 {[%clk 0:02:49]} 14. Nf1 {[%clk 0:02:59]}  Rad8 {[%clk 0:02:47]} 15. Nh4 {[%clk 0:02:44]}  d5 {[%clk 0:02:32]} 16. Qf3 {[%clk 0:02:39]}  Nh7 {[%clk 0:02:02]} 17. Ne3 {[%clk 0:02:25]}  Ng5 {[%clk 0:01:58]} 18. Qg3 {[%clk 0:02:17]}  f6 {[%clk 0:01:23]} 19. exd5 {[%clk 0:01:58]}  Bf7 {[%clk 0:00:42]} 20. dxc6 {[%clk 0:01:53]}  Qxc6 {[%clk 0:00:43]} 21. Bb3 {[%clk 0:01:40]}  Bxb3 {[%clk 0:00:39]} 22. axb3 {[%clk 0:01:41]}  a5 {[%clk 0:00:39]} 23. Nhf5 {[%clk 0:01:39]}  Kh7 {[%clk 0:00:36]} 24. Ng4 {[%clk 0:00:50]}  Qe6 {[%clk 0:00:18]} 25. Nfxh6 {[%clk 0:00:34]}  gxh6 {[%clk 0:00:17]} 26. Qh4 {[%clk 0:00:34]}  Nf7 {[%clk 0:00:03]} 27. Nxf6+ {[%clk 0:00:24]}  Kg6 {[%clk 0:00:02]} 28. Nxe8 {[%clk 0:00:19]}  Rxe8 {[%clk 0:00:03]} 29. Qg4+ {[%clk 0:00:19]}  Qxg4 {[%clk 0:00:03]} 30. hxg4 {[%clk 0:00:20]}  h5 {[%clk 0:00:02]} 31. gxh5+ {[%clk 0:00:20]}  Kxh5 {[%clk 0:00:03]} 32. Be3 {[%clk 0:00:20]}  Bxe3 {[%clk 0:00:02]} 33. fxe3 {[%clk 0:00:21]}  Ra8 {[%clk 0:00:01]} 34. Rf1 {[%clk 0:00:22]}  Kg6 {[%clk 0:00:01]} 35. Rf2 {[%clk 0:00:21]}  Nd6 {[%clk 0:00:02]} 36. Raf1 {[%clk 0:00:19]}  Kg5 {[%clk 0:00:02]} 37. e4 {[%clk 0:00:18]}  Rh8 {[%clk 0:00:03]} 38. Rf3 {[%clk 0:00:19]}  Kg4 {[%clk 0:00:03]} 39. Kf2 {[%clk 0:00:19]}  a4 {[%clk 0:00:02]} 40. bxa4 {[%clk 0:00:18]}  bxa4 {[%clk 0:00:03]} 41. Rg3+ {[%clk 0:00:18]}  Kf4 {[%clk 0:00:02]} 42. Rf3+ {[%clk 0:00:18]}  Kg5 {[%clk 0:00:02]} 43. Ra1 {[%clk 0:00:19]}  Rb8 {[%clk 0:00:01]} 44. Ra2 {[%clk 0:00:19]}  Rb3 {[%clk 0:00:02]} 45. Ke2 {[%clk 0:00:19]}  a3 {[%clk 0:00:02]} 46. bxa3 {[%clk 0:00:18]}  Nb5 {[%clk 0:00:02]} 47. Rc2 {[%clk 0:00:08]}  Nxa3 {[%clk 0:00:02]} 48. Rc1 {[%clk 0:00:07]}  Rb2+ {[%clk 0:00:02]} 49. Kf1 {[%clk 0:00:05]}  Nc2 {[%clk 0:00:02]} 50. Rf2 {[%clk 0:00:03]}  Ne3+ {[%clk 0:00:02]} 51. Kg1 {[%clk 0:00:04]}  Rb3 {[%clk 0:00:02]} 52. Re2 {[%clk 0:00:05]}  Ng4 {[%clk 0:00:02]} 53. Rf1 {[%clk 0:00:04]}  c5 {[%clk 0:00:02]} 54. Rf5+ {[%clk 0:00:04]}  Kh4 {[%clk 0:00:02]} 55. Re1 {[%clk 0:00:02]}  Rxc3 {[%clk 0:00:01]} 56. Rf3 {[%clk 0:00:03]}  Rc2 {[%clk 0:00:01]} 57. Kf1 {[%clk 0:00:03]}  Nh2+ {[%clk 0:00:01]} 58. Kg1 {[%clk 0:00:03]}  Nxf3+ {[%clk 0:00:02]} 59. gxf3 {[%clk 0:00:04]}  Kg3 {[%clk 0:00:02]} 60. Rf1 {[%clk 0:00:04]}  Rg2+ {[%clk 0:00:02]} 61. Kh1 {[%clk 0:00:04]}  Rh2+ {[%clk 0:00:03]} 62. Kg1 {[%clk 0:00:05]}  Rd2 {[%clk 0:00:03]} 63. Rc1 {[%clk 0:00:04]}  Rxd3 {[%clk 0:00:04]} 64. Kf1 {[%clk 0:00:03]}  Kxf3 {[%clk 0:00:03]} 65. Ke1 {[%clk 0:00:03]}  Re3+ {[%clk 0:00:01]} 66. Kd2 {[%clk 0:00:04]}  Rxe4 {[%clk 0:00:01]} 67. Rxc5 {[%clk 0:00:05]}  Kf2 {[%clk 0:00:01]} 68. Kc3 {[%clk 0:00:06]}  Re1 {[%clk 0:00:01]} 69. Kd2 {[%clk 0:00:06]}  Re2+ {[%clk 0:00:01]} 70. Kd3 {[%clk 0:00:06]}  Re3+ {[%clk 0:00:02]} 71. Kd2 {[%clk 0:00:06]}  Re2+ {[%clk 0:00:02]} 72. Kd1 {[%clk 0:00:07]}  e4 {[%clk 0:00:03]} 73. Rf5+ {[%clk 0:00:07]}  Ke3 {[%clk 0:00:03]} 74. Rf8 {[%clk 0:00:08]}  Ra2 {[%clk 0:00:03]} 75. Kc1 {[%clk 0:00:08]}  Ra1+ {[%clk 0:00:03]} 76. Kc2 {[%clk 0:00:08]}  Rh1 {[%clk 0:00:04]} 77. Re8 {[%clk 0:00:08]}  Kf3 {[%clk 0:00:05]} 78. Rf8+ {[%clk 0:00:08]}  Ke2 {[%clk 0:00:05]} 79. Re8 {[%clk 0:00:09]}  e3 {[%clk 0:00:05]} 80. Rf8 {[%clk 0:00:10]}  Rh4 {[%clk 0:00:06]} 81. Kc3 {[%clk 0:00:09]}  Re4 {[%clk 0:00:06]} 82. Rf7 {[%clk 0:00:08]}  Re6 {[%clk 0:00:07]} 83. Rf8 {[%clk 0:00:08]}  Rc6+ {[%clk 0:00:07]} 84. Kd4 {[%clk 0:00:09]}  Kd2 {[%clk 0:00:07]} 85. Ra8 {[%clk 0:00:08]}  e2 {[%clk 0:00:07]} 86. Ra2+ {[%clk 0:00:07]}  Rc2 {[%clk 0:00:08]} 0-1


[Site "https://www.chess.com"]

[Event "Titled Tuesday Blitz September 27 Late 2022"]
[White "Siddharth, Jagadeesh"]
[Black "Melkumyan, Hrant"]
[WhiteFideId "5818320"]
[BlackFideId "13302485"]
[WhiteElo "2165"]
[BlackElo "2604"]
[Result "0-1"]
[Round "07"]
[TimeControl "180+1"]
[Date "2022.09.27"]
[WhiteClock "0:00:04"]
[BlackClock "0:01:07"]

1. d4 {[%clk 0:03:00]}  Nf6 {[%clk 0:02:59]} 2. c4 {[%clk 0:03:00]}  g6 {[%clk 0:03:00]} 3. Nc3 {[%clk 0:03:00]}  Bg7 {[%clk 0:03:00]} 4. e4 {[%clk 0:03:00]}  d6 {[%clk 0:03:01]} 5. Be2 {[%clk 0:03:00]}  O-O {[%clk 0:03:01]} 6. Be3 {[%clk 0:03:01]}  Na6 {[%clk 0:03:01]} 7. h4 {[%clk 0:03:00]}  e5 {[%clk 0:03:00]} 8. d5 {[%clk 0:03:01]}  Nc5 {[%clk 0:03:00]} 9. Qc2 {[%clk 0:03:00]}  Ng4 {[%clk 0:02:54]} 10. Bxg4 {[%clk 0:02:59]}  Bxg4 {[%clk 0:02:55]} 11. f3 {[%clk 0:02:57]}  Bd7 {[%clk 0:02:55]} 12. h5 {[%clk 0:02:51]}  c6 {[%clk 0:02:54]} 13. O-O-O {[%clk 0:02:38]}  cxd5 {[%clk 0:02:47]} 14. Nxd5 {[%clk 0:02:26]}  Rc8 {[%clk 0:02:46]} 15. hxg6 {[%clk 0:02:20]}  fxg6 {[%clk 0:02:45]} 16. g4 {[%clk 0:02:09]}  b5 {[%clk 0:02:45]} 17. Qh2 {[%clk 0:02:04]}  Kf7 {[%clk 0:02:22]} 18. Nh3 {[%clk 0:01:26]}  Ne6 {[%clk 0:02:20]} 19. Kb1 {[%clk 0:01:23]}  bxc4 {[%clk 0:02:15]} 20. Nc3 {[%clk 0:01:13]}  Bc6 {[%clk 0:02:06]} 21. Qd2 {[%clk 0:01:09]}  Kg8 {[%clk 0:02:04]} 22. Ng5 {[%clk 0:00:45]}  Nxg5 {[%clk 0:01:48]} 23. Bxg5 {[%clk 0:00:46]}  Bf6 {[%clk 0:01:49]} 24. Bh6 {[%clk 0:00:43]}  Rf7 {[%clk 0:01:48]} 25. Qxd6 {[%clk 0:00:43]}  Qxd6 {[%clk 0:01:43]} 26. Rxd6 {[%clk 0:00:44]}  Be7 {[%clk 0:01:44]} 27. Re6 {[%clk 0:00:41]}  Bb4 {[%clk 0:01:36]} 28. Bd2 {[%clk 0:00:14]}  Rxf3 {[%clk 0:01:30]} 29. a3 {[%clk 0:00:13]}  Bxc3 {[%clk 0:01:29]} 30. Bxc3 {[%clk 0:00:11]}  Rxc3 {[%clk 0:01:28]} 31. Rxc6 {[%clk 0:00:10]}  Rxc6 {[%clk 0:01:29]} 32. bxc3 {[%clk 0:00:11]}  Rb6+ {[%clk 0:01:27]} 33. Kc2 {[%clk 0:00:11]}  Rb3 {[%clk 0:01:25]} 34. Rd1 {[%clk 0:00:11]}  Rxa3 {[%clk 0:01:25]} 35. Rd5 {[%clk 0:00:09]}  Ra2+ {[%clk 0:01:23]} 36. Kb1 {[%clk 0:00:09]}  Rg2 {[%clk 0:01:24]} 37. Rxe5 {[%clk 0:00:09]}  Rxg4 {[%clk 0:01:24]} 38. Kc2 {[%clk 0:00:07]}  h5 {[%clk 0:01:25]} 39. Kd2 {[%clk 0:00:08]}  Kf7 {[%clk 0:01:24]} 40. Ke3 {[%clk 0:00:07]}  h4 {[%clk 0:01:24]} 41. Ra5 {[%clk 0:00:07]}  Rg3+ {[%clk 0:01:12]} 42. Kd4 {[%clk 0:00:07]}  g5 {[%clk 0:01:12]} 43. Rxa7+ {[%clk 0:00:08]}  Kg6 {[%clk 0:01:13]} 44. e5 {[%clk 0:00:08]}  h3 {[%clk 0:01:12]} 45. Ra8 {[%clk 0:00:07]}  g4 {[%clk 0:01:10]} 46. e6 {[%clk 0:00:07]}  Kf6 {[%clk 0:01:10]} 47. Re8 {[%clk 0:00:04]}  Rg1 {[%clk 0:01:07]} 48. e7 {[%clk 0:00:03]}  Kf7 {[%clk 0:01:05]} 49. Rh8 {[%clk 0:00:01]}  Kxe7 {[%clk 0:01:06]} 50. Kxc4 {[%clk 0:00:02]}  Rg2 {[%clk 0:01:05]} 51. Kc5 {[%clk 0:00:02]}  h2 {[%clk 0:01:05]} 52. c4 {[%clk 0:00:03]}  g3 {[%clk 0:01:06]} 53. Kb6 {[%clk 0:00:03]}  Rg1 {[%clk 0:01:06]} 54. c5 {[%clk 0:00:04]}  h1=Q {[%clk 0:01:07]} 0-1


[Site "https://www.chess.com"]

[Event "Titled Tuesday Blitz September 27 Late 2022"]
[White "So, Wesley"]
[Black "Ernst, Sipke"]
[WhiteFideId "5202213"]
[BlackFideId "1004689"]
[WhiteElo "2763"]
[BlackElo "2436"]
[Result "1-0"]
[Round "07"]
[TimeControl "180+1"]
[Date "2022.09.27"]
[WhiteClock "0:00:57"]
[BlackClock "0:00:21"]

1. d4 {[%clk 0:03:00]}  d5 {[%clk 0:02:59]} 2. c4 {[%clk 0:03:01]}  c6 {[%clk 0:02:59]} 3. Nf3 {[%clk 0:02:58]}  Nf6 {[%clk 0:02:59]} 4. Qb3 {[%clk 0:02:59]}  dxc4 {[%clk 0:02:55]} 5. Qxc4 {[%clk 0:03:00]}  Bf5 {[%clk 0:02:55]} 6. g3 {[%clk 0:02:59]}  e6 {[%clk 0:02:54]} 7. Bg2 {[%clk 0:03:00]}  Nbd7 {[%clk 0:02:55]} 8. O-O {[%clk 0:02:49]}  Be7 {[%clk 0:02:55]} 9. Qb3 {[%clk 0:02:50]}  Qb6 {[%clk 0:02:54]} 10. Nbd2 {[%clk 0:02:49]}  O-O {[%clk 0:02:53]} 11. Nc4 {[%clk 0:02:50]}  Qa6 {[%clk 0:02:51]} 12. Bf4 {[%clk 0:02:45]}  c5 {[%clk 0:02:31]} 13. Nfe5 {[%clk 0:02:13]}  b5 {[%clk 0:01:40]} 14. Ne3 {[%clk 0:02:10]}  c4 {[%clk 0:01:24]} 15. Qd1 {[%clk 0:01:57]}  Nxe5 {[%clk 0:01:16]} 16. Bxa8 {[%clk 0:01:37]}  Ng6 {[%clk 0:01:16]} 17. Nxf5 {[%clk 0:01:31]}  exf5 {[%clk 0:01:15]} 18. Bg2 {[%clk 0:01:31]}  Nxf4 {[%clk 0:01:10]} 19. gxf4 {[%clk 0:01:32]}  Qd6 {[%clk 0:00:46]} 20. e3 {[%clk 0:01:30]}  g5 {[%clk 0:00:46]} 21. a4 {[%clk 0:01:17]}  gxf4 {[%clk 0:00:40]} 22. Qf3 {[%clk 0:01:16]}  b4 {[%clk 0:00:34]} 23. Bh3 {[%clk 0:01:13]}  Kh8 {[%clk 0:00:29]} 24. Kh1 {[%clk 0:01:10]}  Ne4 {[%clk 0:00:27]} 25. Bxf5 {[%clk 0:01:09]}  Nd2 {[%clk 0:00:26]} 26. Qh3 {[%clk 0:00:59]}  h6 {[%clk 0:00:23]} 27. Rg1 {[%clk 0:01:00]}  Bg5 {[%clk 0:00:21]} 28. Rxg5 {[%clk 0:00:57]} 1-0


[Site "https://www.chess.com"]